fUSD/lending_fUSD_20240530
["ID","MTS","AMOUNT","RATE_DAILY","PERIOD"]
[328196643,1717044632079,-150.99,0.00026909,2]
[328196644,1717044632088,-30.65037766,0.00027,2]
[328196645,1717044632100,-3749.66154191,0.00027,2]
[328196646,1717044632111,-240.33865679,0.00027,2]
[328196647,1717044632120,-397.4737,0.0002729,2]
[328196648,1717044632130,-150.0,0.0002737,2]
[328196649,1717044632139,-805.91709047,0.0002739,2]
[328196650,1717044632148,-6949.17054274,0.00028,3]
[328196651,1717044632160,-1054.0859215,0.00028,3]
[328196652,1717044632169,-155.41,0.00028445,2]
[328196653,1717044632178,-250.0,0.00028569,2]
[328196654,1717044632187,-208.17,0.00028628,2]
[328196655,1717044632197,-250.0,0.00028634,2]
[328196656,1717044632206,-1084.57041126,0.00028639,2]
[328196657,1717044632220,-9990.19263993,0.00028639,2]
[328196658,1717044632231,-8765.97431311,0.00028639,2]
[328196659,1717044632246,-3053.6026357,0.00028639,2]
[328196660,1717044632255,-307.14868229,0.0002865,2]
[328196661,1717044632266,-302.13131771,0.0002865,2]
[328196662,1717044632275,-1151.78,0.00028664,2]
[328196663,1717044632283,-191.12,0.00028673,2]
[328196664,1717044632293,-185.86,0.0002874,2]
[328196665,1717044632302,-2706.96923503,0.00028756,2]
[328196666,1717044632317,-1521.76221221,0.00028756,2]
[328196667,1717044632908,-2736.95855276,0.00028756,2]
[328196668,1717044632918,-1000.0,0.00028768,2]
[328196669,1717044632927,-2954.0,0.000288,2]
[328196670,1717044632936,-1333.16,0.00028993,2]
[328196671,1717044632946,-484.36,0.00029085,2]
[328196672,1717044632957,-399.889328,0.000291,2]
[328196673,1717044632966,-208.0,0.0002911,2]
[328196674,1717044632976,-445.48092694,0.00029165,2]
[328196675,1717044632986,-976.0,0.00029166,2]
[328196676,1717044633094,-357.0,0.00029166,2]
[328196677,1717044633104,-220.0,0.00029166,2]
[328196678,1717044633114,-1646.0,0.00029166,2]
[328196679,1717044633122,-797.68935231,0.00029166,2]
[328196680,1717044633134,-400.31064769,0.00029166,2]
[328196681,1717044633142,-227.54233827,0.00029166,2]
[328196682,1717044633153,-386.45766173,0.00029166,2]
[328196683,1717044633162,-277.58181924,0.00029166,2]
[328196686,1717044633187,-162.41818076,0.00029166,2]
[328196687,1717044633195,-398.08181924,0.00029166,2]
[328196688,1717044633236,-866.91818076,0.00029166,2]
[328196689,1717044633245,-445.0,0.00029166,2]
[328196690,1717044633254,-2079.94313924,0.00029166,2]
[328196691,1717044633265,-320.05686076,0.00029166,2]
[328196692,1717044633275,-627.51264428,0.00029166,2]
[328196693,1717044633290,-180.48735572,0.00029166,2]
[328196694,1717044633299,-183.7007828,0.00029166,2]
[328196695,1717044633309,-1087.10900317,0.00029166,2]
[328196696,1717044633320,-34.19021403,0.00029166,2]
[328196697,1717044633330,-216.0,0.00029166,2]
[328196698,1717044633338,-432.40978597,0.00029166,2]
[328196712,1717044637938,-289.36121403,0.00029166,2]
[328196713,1717044637958,-3167.0,0.00029166,2]
[328196714,1717044637969,-37963.0,0.00029166,2]
[328196715,1717044637979,-5143.0,0.00029166,2]
[328196716,1717044637991,-5143.0,0.00029166,2]
[328196717,1717044638001,-315.37356774,0.00029543,7]
[328196718,1717044638010,-207.0,0.0002958,2]
[328196719,1717044638020,-220.0,0.0002969,2]
[328196720,1717044638030,-208.0,0.0002969,2]
[328196721,1717044638040,-153.82665682,0.00029744,2]
[328196722,1717044638050,-153.82665682,0.00029753,2]
[328196723,1717044638060,-159.94564544,0.0002981,2]
[328196724,1717044638070,-5698.34718129,0.0003,2]
[328196725,1717044638081,-5000.0,0.0003,4]
[328196726,1717044638090,-7397.19644682,0.0003,2]
[328196727,1717044638100,-854.04776729,0.0003,10]
[328196728,1717044638173,-162.64612981,0.0003,10]
[328196729,1717044638183,-410.63676069,0.0003,4]
[328196730,1717044638198,-7944.81792,0.0003,4]
[328196731,1717044638244,-278.64699068,0.0003,4]
[328196732,1717044638268,-672.57,0.0003,4]
[328196735,1717044641784,-389.72999925,0.00029166,2]
[328196736,1717044641801,-659.48801452,0.00029166,2]
[328196737,1717044641818,-13.78198623,0.00029166,2]
[328196738,1717044641832,-757.67816508,0.0003,4]
[328196739,1717044641849,-393.27419289,0.0003,4]
[328196740,1717044641964,-1163.68068873,0.0003,4]
[328196741,1717044641981,-505.53116172,0.0003,4]
[328196755,1717044643127,-1758.05213441,0.00013971,2]
[328196756,1717044643150,-33.83385936,0.00013971,2]
[328196757,1717044643160,-150.0,0.00029166,2]
[328196758,1717044643170,-362.40123323,0.0003,4]
[328196759,1717044643331,-661.66608519,0.0003,4]
[328196760,1717044643419,-867.73831634,0.0003,4]
[328196761,1717044643429,-172.4264527,0.0003,2]
[328196762,1717044643440,-27.5735473,0.0003,2]
[328196763,1717044643449,-168.66820434,0.00030115,7]
[328196764,1717044643459,-153.4610551,0.00030133,7]
[328196765,1717044643469,-158.05238315,0.0003016,2]
[328196766,1717044643594,-48.94761685,0.0003016,2]
[328196767,1717044643604,-154.14110316,0.000302,7]
[328196768,1717044643614,-150.0,0.00030253,2]
[328196769,1717044643629,-106.98219853,0.00030259,7]
[328196770,1717044643642,-46.84445829,0.00030259,7]
[328196771,1717044643651,-220.0,0.0003026,2]
[328196772,1717044643661,-208.0,0.0003026,2]
[328196773,1717044643671,-155.06014693,0.00030311,7]
[328196774,1717044643681,-423.46,0.00030411,2]
[328196775,1717044643690,-871.43,0.00030411,2]
[328196776,1717044643700,-226.55717612,0.00030411,2]
[328196802,1717044645899,-1246.52348474,0.0003041,4]
[328196803,1717044645908,-644.87282388,0.00030411,2]
[328196804,1717044645917,-368.53,0.00030411,2]
[328196805,1717044645926,-155.5452249,0.00030449,7]
[328196806,1717044645936,-150.0,0.00030679,2]
[328196807,1717044645945,-153.4610551,0.00030694,7]
[328196808,1717044645954,-150.0,0.00030702,2]
[328196809,1717044645964,-155.06014693,0.00030711,7]
[328196810,1717044645973,-207.0,0.0003075,2]
[328196811,1717044645982,-150.0,0.00030773,2]
[328196812,1717044645993,-1734.05597631,0.00030788,2]
[328196813,1717044646005,-6541.42000035,0.00030788,2]
[328196817,1717044646051,-1126.91154092,0.00030788,2]
[328196818,1717044646221,-150.0,0.00030371,2]
[328196819,1717044646230,-229.63,0.0003041,4]
[328196820,1717044646298,-150.0,0.00029843,2]
[328196821,1717044646307,-1910.92748132,0.0003041,4]
[328196822,1717044646318,-56.83158196,0.0003041,4]
[328196823,1717044646328,-2229.71034713,0.00030788,2]
[328196824,1717044646336,-150.0,0.00030804,2]
[328196825,1717044646346,-711.93,0.00030822,2]
[328196826,1717044646355,-220.0,0.0003083,2]
[328196827,1717044646364,-208.0,0.0003083,2]
[328196828,1717044646372,-500.0,0.0003085,2]
[328196829,1717044646381,-200.0,0.0003085,2]
[328196830,1717044646391,-168.66820434,0.00030882,7]
[328196831,1717044646400,-471.30364173,0.000309,10]
[328196832,1717044646408,-224.0,0.000309,2]
[328196833,1717044646417,-150.0,0.00030901,2]
[328196834,1717044646426,-150.0,0.00030947,2]
[328196835,1717044646435,-150.0,0.00030948,2]
[328196836,1717044646444,-4604.48263445,0.0003097,4]
[328196837,1717044646453,-153.4610551,0.00030972,7]
[328196838,1717044646463,-310.33249517,0.0003099,2]
[328196839,1717044646472,-1029.28349667,0.00030998,2]
[328196868,1717045832092,-2003.94187652,0.00013895,2]
[328196869,1717045832102,-156.38404616,0.00013896,2]
[328196871,1717045832112,-1181.35301246,0.00013896,2]
[328196873,1717045832122,-1898.32825842,0.00013897,2]
[328196874,1717045832131,-1207.95616487,0.00013897,2]
[328196875,1717045832140,-1246.94588044,0.00013897,2]
[328196876,1717045832150,-1547.430532,0.00013898,2]
[328196877,1717045832159,-155.0,0.00013969,2]
[328196878,1717045832168,-3289.59755306,0.00013969,2]
[328196879,1717045832177,-696.0,0.00013969,2]
[328196880,1717045832187,-7527.02870314,0.0001397,2]
[328196881,1717045832196,-1170.83840616,0.00013972,2]
[328196882,1717045832206,-154.81,0.00013973,2]
[328196883,1717045832215,-546.50748998,0.00014998,2]
[328196884,1717045832225,-155.0,0.00015,2]
[328196885,1717045832235,-808.77,0.00015182,2]
[328196886,1717045832244,-150.0,0.0001525,2]
[328196887,1717045832254,-150.0,0.0001525,2]
[328196888,1717045832264,-940.49566829,0.00015415,2]
[328196889,1717045832274,-1222.35614635,0.00015503,2]
[328196890,1717045832284,-200.0,0.00015521,2]
[328196891,1717045832293,-187.73,0.0001561,2]
[328196892,1717045832303,-250.0,0.0001561,2]
[328196893,1717045832312,-508.39,0.00015674,2]
[328196894,1717045832326,-2573.75,0.00015892,2]
[328196895,1717045832336,-500.0,0.00015892,2]
[328196896,1717045832345,-1021.88,0.00015937,2]
[328196897,1717045832355,-164.38,0.00015993,3]
[328196898,1717045832366,-1680.72,0.00016438,2]
[328196899,1717045832375,-835.24,0.00016441,2]
[328196900,1717045832386,-250.0,0.00016464,2]
[328196901,1717045832397,-3876.39,0.00016476,2]
[328196902,1717045832408,-338.57,0.00016485,2]
[328196903,1717045832417,-154.65,0.00016589,2]
[328196904,1717045832426,-1751.14,0.00016617,2]
[328196905,1717045832435,-1040.46082115,0.00016649,2]
[328196906,1717045832445,-210.0,0.00016774,2]
[328196907,1717045832454,-210.0,0.00016774,2]
[328196908,1717045832463,-154.65,0.00016877,2]
[328196909,1717045832472,-153.63043949,0.00016912,2]
[328196910,1717045832481,-519.79686221,0.00016915,2]
[328196911,1717045832490,-415.66,0.00016915,2]
[328196912,1717045832499,-235610.87347977,0.00017012,2]
[328196913,1717045832509,-20365.39,0.00017012,2]
[328196914,1717045832519,-300.0,0.00017015,2]
[328196915,1717045832528,-10000.0,0.00017123,2]
[328196916,1717045832538,-154.65,0.00017165,2]
[328196917,1717045832547,-154.65,0.00017453,2]
[328196918,1717045832557,-508.39,0.00017938,2]
[328196919,1717045832566,-22202.42,0.00018212,2]
[328196921,1717045832575,-211.73,0.00018909,2]
[328196923,1717045832584,-519.79686219,0.00019241,2]
[328196925,1717045832594,-753.57815935,0.0001976,2]
[328196927,1717045832602,-211.73,0.00019854,2]
[328196929,1717045832612,-508.39,0.00020202,2]
[328196931,1717045832621,-600.0,0.00020583,2]
[328196933,1717045832630,-211.73,0.000208,2]
[328196935,1717045832639,-1250.0,0.00021,2]
[328196937,1717045832648,-153.63043947,0.00021241,2]
[328196938,1717045832658,-600.0,0.00021441,2]
[328196941,1717045832667,-519.79686219,0.00021568,2]
[328196944,1717045832677,-211.73,0.00021745,2]
[328196946,1717045832686,-515.09976366,0.000219,2]
[328196949,1717045832695,-159.26,0.00021918,2]
[328196952,1717045832704,-250.0,0.00021918,2]
[328196954,1717045832713,-1021.88,0.00022312,2]
[328196958,1717045832723,-508.39,0.00022466,2]
[328196961,1717045832733,-211.73,0.00022691,2]
[328196964,1717045832742,-519.79686219,0.00023894,2]
[328196967,1717045832752,-180.0,0.0002423,2]
[328196970,1717045832761,-508.39,0.0002473,2]
[328196971,1717045832772,-728.16190144,0.00024798,2]
[328196974,1717045832782,-728.16190135,0.00024798,2]
[328196975,1717045832791,-728.16190135,0.00024798,2]
[328196978,1717045832800,-728.16190135,0.00024798,2]
[328196979,1717045832810,-728.16190135,0.00024798,2]
[328196982,1717045832819,-690.77705223,0.00024799,2]
[328196984,1717045832828,-690.77705223,0.00024799,2]
[328196986,1717045832838,-690.77705223,0.00024799,2]
[328196988,1717045832846,-690.77705223,0.00024799,2]
[328196990,1717045832856,-1274.06881089,0.00025,2]
[328196991,1717045832865,-153.63043947,0.00025571,2]
[328196993,1717045832874,-1000.0,0.00025667,2]
[328196996,1717045832884,-690.77705223,0.00025961,2]
[328196998,1717045832893,-728.16190135,0.00025961,2]
[328196999,1717045832902,-519.79686219,0.00026221,2]
[328197002,1717045832912,-1000.0,0.00026608,2]
[328197004,1717045832921,-209.32,0.00026608,2]
[328197005,1717045832931,-508.39,0.00026994,2]
[328197007,1717045832941,-4020.65057636,0.00027,2]
[328197010,1717045832950,-1009.78,0.00027397,2]
[328197012,1717045832959,-1774.0,0.000276,3]
[328197014,1717045832969,-690.77705223,0.00027771,2]
[328197016,1717045832978,-728.16190135,0.00027771,2]
[328197018,1717045832987,-155.1985595,0.00027887,2]
[328197019,1717045832996,-1000.0,0.00027887,2]
[328197021,1717045833005,-166.80891308,0.00027887,2]
[328197023,1717045833015,-162.81464592,0.00027887,2]
[328197025,1717045833028,-344.9320909,0.00027887,2]
[328197027,1717045833038,-155.32536354,0.00027888,2]
[328197029,1717045833047,-519.79686219,0.00028547,2]
[328197032,1717045833057,-167.0,0.0002882,2]
[328197034,1717045833066,-309.7342535,0.00029066,2]
[328197035,1717045833077,-399.889328,0.000291,2]
[328197038,1717045833087,-150.0,0.00029166,2]
[328197040,1717045833096,-150.0,0.00029166,2]
[328197041,1717045833106,-150.0,0.00029166,2]
[328197044,1717045833116,-150.0,0.00029166,2]
[328197045,1717045833126,-150.0,0.00029166,2]
[328197047,1717045833135,-150.0,0.00029166,2]
[328197049,1717045833144,-973.0,0.00029166,2]
[328197051,1717045833154,-357.0,0.00029166,2]
[328197053,1717045833163,-1265.0,0.00029166,2]
[328197055,1717045833172,-440.0,0.00029166,2]
[328197057,1717045833183,-1024.0,0.00029166,2]
[328197059,1717045833192,-1646.0,0.00029166,2]
[328197061,1717045833201,-614.0,0.00029166,2]
[328197063,1717045833210,-445.0,0.00029166,2]
[328197065,1717045833220,-312.661,0.00029166,2]
[328197067,1717045833229,-216.0,0.00029166,2]
[328197069,1717045833238,-3058.823,0.00029166,2]
[328197071,1717045833247,-4878.031,0.00029166,2]
[328197073,1717045833257,-1468.0,0.00029166,2]
[328197075,1717045833268,-37963.0,0.00029166,2]
[328197077,1717045833277,-37963.0,0.00029166,2]
[328197079,1717045833286,-191.96370329,0.00029166,2]
[328197081,1717045833296,-10535.8920723,0.00029166,2]
[328197083,1717045833305,-508.39,0.00029258,2]
[328197085,1717045833314,-154.81,0.00029349,2]
[328197087,1717045833327,-309.7342534,0.00029411,2]
[328197089,1717045833337,-1299.11942176,0.00029448,2]
[328197091,1717045833346,-167.02,0.00029496,2]
[328197093,1717045833355,-690.77705223,0.0002958,2]
[328197095,1717045833366,-320.73667152,0.0002958,2]
[328197098,1717045833379,-407.42522983,0.0002958,2]
[328197100,1717045833391,-151.30123721,0.000297,2]
[328197102,1717045833403,-309.7342534,0.00029755,2]
[328197104,1717045833413,-153.4610551,0.00029762,2]
[328197106,1717045833422,-151.30123721,0.00029782,2]
[328197108,1717045833431,-156.88009327,0.00029891,2]
[328197110,1717045833440,-1569.53689423,0.000299,2]
[328197112,1717045833451,-677.36202,0.000299,2]
[328197117,1717045833494,-2210.79419766,0.000299,2]
[328197135,1717045833646,-315.04,0.000299,2]
[328197139,1717045833671,-728.92117432,0.000299,2]
[328197143,1717045833705,-2716.7799705,0.000299,2]
[328197477,1717045838225,-2116.38032629,0.00013895,2]
[328197478,1717045838237,-215.96702736,0.00013895,2]
[328197479,1717045838247,-142.34331188,0.00013897,2]
[328197480,1717045838411,-3652.45937007,0.00013897,2]
[328197481,1717045838455,-18260.14315627,0.00013897,2]
[328197482,1717045838520,-4077.05044097,0.00013897,2]
[328197483,1717045838532,-1577.03057437,0.00013897,2]
[328197493,1717045840779,-250.4005637,0.00013897,2]
[328197504,1717045841834,-2221.94984755,0.00013897,2]
[328197505,1717045841845,-819.647458,0.00013897,2]
[328197506,1717045841857,-4420.45143533,0.00013897,2]
[328197507,1717045841866,-3149.09870018,0.000299,2]
[328197508,1717045841875,-250.53149921,0.000299,2]
[328197509,1717045841884,-153.63043947,0.000299,2]
[328197510,1717045841892,-1000.0,0.00029934,2]
[328197511,1717045841901,-151.17,0.0002999,2]
[328197512,1717045841997,-787.31406925,0.00029997,2]
[328197513,1717045842044,-500.0,0.00029999,2]
[328197514,1717045842054,-500.0,0.00029999,2]
[328197515,1717045842063,-500.0,0.00029999,2]
[328197516,1717045842072,-500.0,0.00029999,2]
[328197517,1717045842082,-500.0,0.00029999,2]
[328197518,1717045842091,-372.23987917,0.00029999,2]
[328197519,1717045842100,-500.0,0.00029999,2]
[328197520,1717045842109,-500.0,0.00029999,2]
[328197521,1717045842118,-500.0,0.00029999,2]
[328197522,1717045842127,-500.0,0.00029999,2]
[328197523,1717045842136,-500.0,0.00029999,2]
[328197524,1717045842145,-356.68831809,0.00029999,2]
[328197525,1717045842153,-1072.57613773,0.0003,11]
[328197526,1717045842163,-5000.0,0.0003,4]
[328197527,1717045842171,-107292.41339999,0.0003,2]
[328197537,1717045843243,-758.11228043,0.00017259,2]
[328197538,1717045843253,-201.88771957,0.0003,2]
[328197539,1717045843269,-227806.24216217,0.0003,2]
[328197540,1717045843281,-623.25,0.0003,2]
[328197541,1717045843391,-1180.67957981,0.00017259,2]
[328197542,1717045843402,-706.90826251,0.00029999,2]
[328197543,1717045843412,-379.91215768,0.0003,2]
[328197544,1717045843440,-1220.00000001,0.0003,2]
[328197545,1717045843575,-334.62239681,0.0003,2]
[328197546,1717045843587,-1031.53958,0.0003,2]
[328197547,1717045843686,-826.25901472,0.0003,2]
[328197548,1717045843697,-952.20933943,0.0003,2]
[328197549,1717045843708,-19200.96949321,0.0003,2]
[328197563,1717045846311,-631.44,0.00029166,2]
[328197564,1717045846326,-299.71543082,0.00029999,2]
[328197565,1717045846335,-372.42951183,0.0003,2]
[328197566,1717045846346,-1912.9668,0.0003,2]
[328197567,1717045846357,-322.9200001,0.0003,2]
[328197568,1717045846370,-272.69910537,0.0003,2]
[328197569,1717045846380,-1333.14755087,0.0003,2]
[328197570,1717045846463,-2768.85970387,0.0003,2]
[328197571,1717045846474,-7567.08157827,0.0003,2]
[328197572,1717045846485,-3730.04859743,0.0003,2]
[328197573,1717045846496,-1376.84603702,0.0003,2]
[328197574,1717045846507,-497.75,0.0003,2]
[328197575,1717045846538,-21943.09395274,0.0003,2]
[328197576,1717045846549,-530.6,0.0003,2]
[328197610,1717047032269,-155.0,0.00013795,2]
[328197611,1717047032278,-290.84056694,0.00013795,2]
[328197612,1717047032287,-54.15943306,0.00013796,2]
[328197613,1717047032298,-424.54627044,0.00013796,2]
[328197615,1717047032310,-780.85670091,0.00013796,2]
[328197617,1717047032318,-1905.94066262,0.00013797,2]
[328197618,1717047032329,-600.0,0.00013797,2]
[328197619,1717047032400,-2777.69237444,0.00013797,2]
[328197620,1717047032408,-210.60565087,0.00013797,2]
[328197621,1717047032418,-884.97505518,0.00013798,2]
[328197622,1717047032558,-381.72691951,0.00013798,2]
[328197623,1717047032573,-435.0,0.00013798,2]
[328197624,1717047032583,-1515.62043414,0.00013798,2]
[328197625,1717047032592,-751.80430157,0.00013799,2]
[328197626,1717047032601,-150.0,0.00013799,2]
[328197627,1717047032609,-155.91,0.00013973,2]
[328197628,1717047032617,-1898.32825842,0.00017257,2]
[328197629,1717047032626,-2003.94187652,0.00017258,2]
[328197631,1717047032635,-166.28273174,0.00017259,2]
[328197633,1717047032643,-345.47979488,0.00017259,2]
[328197635,1717047032652,-1826.1853206,0.00017259,2]
[328197637,1717047032662,-160.98,0.0001726,2]
[328197640,1717047032671,-499.99,0.0001726,2]
[328197642,1717047032681,-1006.66,0.00017534,2]
[328197644,1717047032691,-155.91,0.00020447,2]
[328197646,1717047032700,-377.23,0.00023672,2]
[328197648,1717047032709,-1274.06881089,0.00025,2]
[328197650,1717047032721,-1208.2,0.00025477,2]
[328197652,1717047032731,-541.62529953,0.00025482,2]
[328197653,1717047032740,-35632.24,0.00025483,2]
[328197656,1717047032750,-1913.89,0.00025619,2]
[328197657,1717047032760,-4031.1,0.00025725,2]
[328197659,1717047032769,-489.22,0.00025751,2]
[328197661,1717047032779,-159.26,0.00025835,2]
[328197663,1717047032788,-1852.42,0.00025867,2]
[328197666,1717047032800,-250.0,0.00025906,2]
[328197667,1717047032809,-377.23,0.00025936,2]
[328197670,1717047032820,-358.61,0.00025962,2]
[328197671,1717047032829,-250.0,0.00025962,2]
[328197674,1717047032838,-500.0,0.00026009,2]
[328197675,1717047032847,-1219.08,0.00026071,2]
[328197677,1717047032857,-1000.0,0.00026625,2]
[328197680,1717047032866,-155.91,0.00026921,2]
[328197682,1717047032875,-4020.65057636,0.00027,2]
[328197684,1717047032884,-176.46,0.00027194,2]
[328197686,1717047032893,-332.31,0.00027259,2]
[328197687,1717047032903,-620.0,0.000275,3]
[328197690,1717047032913,-174.43,0.00027613,2]
[328197692,1717047032923,-377.23,0.000282,2]
[328197694,1717047032932,-161.73,0.00028393,2]
[328197695,1717047032942,-399.889328,0.000291,2]
[328197697,1717047032951,-352.56,0.00029178,2]
[328197700,1717047032960,-525.06,0.00029178,2]
[328197701,1717047032970,-408.47,0.00029178,2]
[328197703,1717047032979,-163.81,0.00029178,2]
[328197705,1717047032989,-150.0,0.00029178,2]
[328197708,1717047032998,-150.0,0.00029178,2]
[328197709,1717047033008,-226.13,0.00029178,2]
[328197711,1717047033018,-525.06,0.00029178,2]
[328197714,1717047033028,-524.34,0.00029178,2]
[328197715,1717047033037,-150.0,0.00029178,2]
[328197716,1717047033047,-150.0,0.00029178,2]
[328197717,1717047033056,-352.56,0.00029178,2]
[328197718,1717047033066,-421.62,0.00029178,2]
[328197719,1717047033075,-421.62,0.00029178,2]
[328197720,1717047033084,-150.0,0.00029178,2]
[328197721,1717047033094,-150.0,0.00029178,2]
[328197722,1717047033108,-150.0,0.00029178,2]
[328197723,1717047033118,-150.0,0.00029178,2]
[328197724,1717047033127,-150.0,0.00029178,2]
[328197725,1717047033136,-421.62,0.00029178,2]
[328197726,1717047033145,-352.56,0.00029178,2]
[328197727,1717047033155,-150.0,0.00029178,2]
[328197728,1717047033164,-150.0,0.00029178,2]
[328197729,1717047033182,-163.81,0.00029178,2]
[328197730,1717047033191,-419.86,0.00029178,2]
[328197731,1717047033201,-352.56,0.00029178,2]
[328197732,1717047033210,-150.0,0.00029178,2]
[328197733,1717047033219,-150.0,0.00029405,2]
[328197734,1717047033229,-504.416,0.00029666,2]
[328197735,1717047033238,-445.0,0.00029666,2]
[328197736,1717047033247,-1305.0,0.00029666,2]
[328197737,1717047033256,-1018.0,0.00029666,2]
[328197738,1717047033265,-5769.0,0.00029666,2]
[328197739,1717047033274,-150.0,0.00029757,2]
[328197740,1717047033283,-156.04544168,0.00029771,2]
[328197741,1717047033292,-156.88009327,0.00029812,2]
[328197742,1717047033302,-6871.674,0.00029897,2]
[328197743,1717047033311,-895.7751,0.00029897,2]
[328197744,1717047033321,-2500.0,0.00029897,2]
[328197745,1717047033330,-161.8137559,0.00029897,2]
[328197746,1717047033339,-163.87246878,0.00029897,2]
[328197747,1717047033350,-7500.0,0.000299,2]
[328197748,1717047033359,-311.22559162,0.000299,2]
[328197749,1717047033369,-150.0,0.00029951,2]
[328197750,1717047033378,-1000.0,0.00029953,2]
[328197751,1717047033387,-151.30123721,0.0002996,2]
[328197752,1717047033396,-251.30270565,0.00029995,2]
[328197753,1717047033405,-164612.00141513,0.00029997,2]
[328197754,1717047033414,-153.69998984,0.00029997,2]
[328197755,1717047033423,-155.0,0.00029998,2]
[328197756,1717047033433,-155.31449266,0.00029998,2]
[328197757,1717047033442,-157.78865682,0.00029998,2]
[328197758,1717047033452,-155.0,0.00029998,2]
[328197759,1717047033461,-1000.0,0.00029998,2]
[328197760,1717047033471,-1051.47566796,0.00029998,2]
[328197761,1717047033481,-30575.0911424,0.00029998,2]
[328197762,1717047033490,-10190.28689619,0.00029998,2]
[328197763,1717047033500,-1278.95102561,0.00029998,2]
[328197764,1717047033509,-163.08427479,0.00029998,2]
[328197765,1717047033520,-579.1589763,0.00029998,2]
[328197766,1717047033529,-1000.0,0.00029999,2]
[328197767,1717047033539,-7076.66694726,0.00029999,2]
[328197768,1717047033548,-19244.82087909,0.0003,2]
[328197769,1717047033580,-271.2999999,0.0003,2]
[328197770,1717047033592,-836.74867698,0.0003,2]
[328197771,1717047033623,-13406.31785535,0.0003,2]
[328197781,1717047038440,-1023.5008851,0.00029666,2]
[328197782,1717047038452,-358.48667185,0.00029666,2]
[328197783,1717047038463,-10000.274256,0.00029666,2]
[328197784,1717047038505,-1240.84560188,0.00029666,2]
[328197785,1717047038517,-515.29338044,0.00029666,2]
[328197786,1717047038630,-361.675,0.00029666,2]
[328197787,1717047038642,-417.33513399,0.00029666,2]
[328197790,1717047038829,-275.89164608,0.00029666,2]
[328197792,1717047038840,-566.76354058,0.00029666,2]
[328197845,1717047041852,-439.015,0.00029666,2]
[328197846,1717047041866,-1618.36088408,0.00029666,2]
[328197847,1717047041875,-823.414,0.00029666,2]
[328197848,1717047041885,-180.29542111,0.0002999,2]
[328197849,1717047041894,-65052.3434364,0.0003,2]
[328197852,1717047043386,-1002.0921689,0.0003,2]
[328197853,1717047043397,-2995.135,0.0003,2]
[328197855,1717047043812,-409.741848,0.00029999,2]
[328197881,1717048231620,-337.62197281,0.00017241,2]
[328197882,1717048231630,-1259.56240441,0.00017245,2]
[328197883,1717048231639,-150.0,0.00017247,2]
[328197884,1717048231649,-500.0,0.00017248,2]
[328197885,1717048231659,-500.0,0.00017248,2]
[328197886,1717048231667,-500.0,0.00017248,2]
[328197887,1717048231677,-500.0,0.00017248,2]
[328197888,1717048231686,-500.0,0.00017248,2]
[328197889,1717048231695,-500.0,0.00017248,2]
[328197890,1717048231705,-500.0,0.00017248,2]
[328197891,1717048231714,-500.0,0.00017248,2]
[328197892,1717048231723,-195.26071642,0.00017248,2]
[328197893,1717048231735,-304.73928358,0.00017248,2]
[328197894,1717048231744,-500.0,0.00017248,2]
[328197895,1717048231753,-500.0,0.00017248,2]
[328197896,1717048231762,-500.0,0.00017248,2]
[328197897,1717048231771,-500.0,0.00017248,2]
[328197898,1717048231781,-500.0,0.00017248,2]
[328197899,1717048231790,-500.0,0.00017248,2]
[328197900,1717048231799,-500.0,0.00017248,2]
[328197901,1717048231808,-500.0,0.00017248,2]
[328197902,1717048231817,-500.0,0.00017248,2]